fUSD/lending_fUSD_20250905
["ID","MTS","AMOUNT","RATE_DAILY","PERIOD"]
[383624863,1757045455656,-406.77507897,0.00025346,2]
[383624864,1757045455666,-400.0,0.00025346,2]
[383624865,1757045455676,-400.0,0.00025346,2]
[383624866,1757045455685,-400.0,0.00025346,2]
[383624867,1757045455695,-400.0,0.00025346,2]
[383624868,1757045455704,-400.0,0.00025346,2]
[383624869,1757045455714,-400.0,0.00025346,2]
[383624870,1757045455725,-234.88263238,0.00025346,2]
[383624871,1757045455735,-400.0,0.00025346,2]
[383624872,1757045455745,-400.0,0.00025346,2]
[383624873,1757045455757,-400.0,0.00025346,2]
[383624874,1757045455767,-400.0,0.00025346,2]
[383624875,1757045455778,-400.0,0.00025346,2]
[383624876,1757045455787,-400.0,0.00025346,2]
[383624877,1757045455798,-400.0,0.00025346,2]
[383624878,1757045455808,-400.0,0.00025346,2]
[383624879,1757045455818,-353.84,0.00025346,2]
[383624880,1757045455828,-400.0,0.00025346,2]
[383624881,1757045455838,-408.56640018,0.00025346,2]
[383624882,1757045455848,-400.0,0.00025346,2]
[383624883,1757045455858,-458.68362113,0.00025346,2]
[383624884,1757045455868,-408.96775611,0.00025346,2]
[383624885,1757045455879,-400.0,0.00025346,2]
[383624886,1757045455889,-400.0,0.00025346,2]
[383624887,1757045455899,-400.0,0.00025346,2]
[383624888,1757045455909,-400.0,0.00025346,2]
[383624889,1757045455919,-400.0,0.00025346,2]
[383624890,1757045455929,-400.0,0.00025346,2]
[383624891,1757045455939,-400.0,0.00025346,2]
[383624892,1757045455948,-400.0,0.00025346,2]
[383624893,1757045455958,-406.98143076,0.00025346,2]
[383624894,1757045455968,-400.00339505,0.00025346,2]
[383624895,1757045455978,-400.0,0.00025346,2]
[383624896,1757045455987,-400.0,0.00025346,2]
[383624897,1757045455997,-400.0,0.00025346,2]
[383624898,1757045456006,-400.0,0.00025346,2]
[383624899,1757045456016,-400.0,0.00025346,2]
[383624900,1757045456026,-400.0,0.00025346,2]
[383624901,1757045456036,-400.0,0.00025346,2]
[383624902,1757045456046,-400.0,0.00025346,2]
[383624903,1757045456055,-400.0,0.00025346,2]
[383624904,1757045456065,-400.0,0.00025346,2]
[383624905,1757045456075,-400.0,0.00025346,2]
[383624906,1757045456084,-408.4646895,0.00025346,2]
[383624907,1757045456095,-400.0,0.00025346,2]
[383624908,1757045456104,-400.0,0.00025346,2]
[383624909,1757045456114,-450.73286965,0.00025346,2]
[383624910,1757045456124,-400.0,0.00025346,2]
[383624911,1757045456134,-400.0,0.00025346,2]
[383624912,1757045456144,-400.0,0.00025346,2]
[383624913,1757045456153,-400.0,0.00025346,2]
[383624914,1757045456163,-400.0,0.00025346,2]
[383624915,1757045456173,-400.0,0.00025346,2]
[383624916,1757045456183,-400.0,0.00025346,2]
[383624917,1757045456192,-400.0,0.00025346,2]
[383624918,1757045456202,-400.0,0.00025346,2]
[383624919,1757045456213,-400.0,0.00025346,2]
[383624920,1757045456222,-400.0,0.00025346,2]
[383624921,1757045456232,-400.0,0.00025346,2]
[383624922,1757045456242,-400.0,0.00025346,2]
[383624923,1757045456252,-400.0,0.00025346,2]
[383624924,1757045456262,-441.8926611,0.00025346,2]
[383624925,1757045456274,-400.0,0.00025346,2]
[383624926,1757045456285,-417.81225344,0.00025346,2]
[383624927,1757045456296,-400.0,0.00025346,2]
[383624928,1757045456308,-469.28701507,0.00025346,2]
[383624929,1757045456320,-408.73362577,0.00025346,2]
[383624930,1757045456330,-406.56972128,0.00025346,2]
[383624931,1757045456340,-400.0,0.00025346,2]
[383624932,1757045456350,-434.59,0.00025346,2]
[383624933,1757045456359,-400.0,0.00025346,2]
[383624934,1757045456369,-400.0,0.00025346,2]
[383624935,1757045456380,-333.72907822,0.00025346,2]
[383624936,1757045456559,-294.99790998,0.00025346,2]
[383624937,1757045456570,-400.0,0.00025346,2]
[383624938,1757045456580,-400.0,0.00025346,2]
[383624939,1757045456590,-400.0,0.00025346,2]
[383624940,1757045456600,-400.0,0.00025346,2]
[383624941,1757045456609,-400.0,0.00025346,2]
[383624942,1757045456619,-400.0,0.00025346,2]
[383624943,1757045456630,-400.0,0.00025346,2]
[383624944,1757045456639,-473.11356088,0.00025346,2]
[383624945,1757045456651,-400.0,0.00025346,2]
[383624946,1757045456660,-500.0,0.00025409,2]
[383624947,1757045456670,-500.0,0.00025409,2]
[383624948,1757045456680,-500.0,0.00025409,2]
[383624949,1757045456689,-500.0,0.00025409,2]
[383624950,1757045456699,-500.0,0.00025409,2]
[383624951,1757045456708,-500.0,0.00025409,2]
[383624952,1757045456717,-168.0,0.00025419,2]
[383624953,1757045456726,-500.0,0.00025425,2]
[383624954,1757045456736,-500.0,0.00025429,2]
[383624955,1757045456745,-25239.4407081,0.00025435,3]
[383624956,1757045456755,-400.0,0.00025445,2]
[383624957,1757045456765,-400.0,0.00025445,2]
[383624958,1757045456775,-295.76546176,0.00025445,2]
[383624959,1757045456785,-400.0,0.00025445,2]
[383624960,1757045456795,-213.19067554,0.00025445,2]
[383624961,1757045456804,-400.0,0.00025445,2]
[383624962,1757045456813,-400.0,0.00025445,2]
[383624963,1757045456823,-400.0,0.00025445,2]
[383624964,1757045456833,-336.94454457,0.00025445,2]
[383624965,1757045456843,-233.0893951,0.00025445,2]
[383624966,1757045456852,-521.06129832,0.00025445,2]
[383624967,1757045456862,-408.56230737,0.00025445,2]
[383624968,1757045456872,-400.0,0.00025445,2]
[383624969,1757045456881,-400.0,0.00025445,2]
[383624970,1757045456891,-400.0,0.00025445,2]
[383624971,1757045456901,-411.45041471,0.00025445,2]
[383624972,1757045456913,-505.05141009,0.00025445,2]
[383624973,1757045456925,-400.0,0.00025445,2]
[383624974,1757045456934,-400.0,0.00025445,2]
[383624975,1757045456944,-400.0,0.00025445,2]
[383624976,1757045456954,-424.04530752,0.00025445,2]
[383624977,1757045456963,-400.0,0.00025445,2]
[383624978,1757045456973,-404.74701101,0.00025445,2]
[383624979,1757045456982,-364.01,0.00025445,2]
[383624980,1757045456993,-400.0,0.00025445,2]
[383624981,1757045457002,-365.0894679,0.00025445,2]
[383624982,1757045457012,-400.0,0.00025445,2]
[383624983,1757045457022,-400.0,0.00025445,2]
[383624984,1757045457032,-400.0,0.00025445,2]
[383624985,1757045457042,-400.0,0.00025445,2]
[383624986,1757045457052,-400.0,0.00025445,2]
[383624987,1757045457062,-400.0,0.00025445,2]
[383624988,1757045457072,-408.91445391,0.00025445,2]
[383624989,1757045457082,-210.02127472,0.00025445,2]
[383624990,1757045457092,-484.25883228,0.00025445,2]
[383624991,1757045457101,-409.02161606,0.00025445,2]
[383624992,1757045457111,-400.0,0.00025445,2]
[383624993,1757045457120,-400.0,0.00025445,2]
[383624994,1757045457130,-400.0,0.00025445,2]
[383624995,1757045457140,-400.0,0.00025445,2]
[383624996,1757045457150,-400.0,0.00025445,2]
[383624997,1757045457159,-490.72,0.00025445,2]
[383624998,1757045457169,-271.79567767,0.00025445,2]
[383624999,1757045457178,-314.06696455,0.00025445,2]
[383625000,1757045457187,-400.0,0.00025445,2]
[383625001,1757045457197,-400.0,0.00025445,2]
[383625002,1757045457207,-400.0,0.00025445,2]
[383625003,1757045457216,-400.0,0.00025445,2]
[383625004,1757045457228,-400.0,0.00025445,2]
[383625005,1757045457238,-400.0,0.00025445,2]
[383625006,1757045457247,-400.0,0.00025445,2]
[383625007,1757045457257,-400.0,0.00025445,2]
[383625008,1757045457267,-400.0,0.00025445,2]
[383625009,1757045457276,-400.0,0.00025445,2]
[383625010,1757045457285,-400.0,0.00025445,2]
[383625011,1757045457295,-400.0,0.00025445,2]
[383625012,1757045457304,-400.0,0.00025445,2]
[383625013,1757045457314,-400.0,0.00025445,2]
[383625014,1757045457324,-400.0,0.00025445,2]
[383625015,1757045457333,-400.0,0.00025445,2]
[383625016,1757045457343,-400.0,0.00025445,2]
[383625017,1757045457352,-400.0,0.00025445,2]
[383625018,1757045457362,-400.0,0.00025445,2]
[383625019,1757045457371,-400.0,0.00025445,2]
[383625020,1757045457381,-400.0,0.00025445,2]
[383625021,1757045457391,-400.0,0.00025445,2]
[383625022,1757045457400,-1135.87,0.00025445,2]
[383625023,1757045457410,-400.0,0.00025445,2]
[383625024,1757045457420,-400.0,0.00025445,2]
[383625025,1757045457430,-400.0,0.00025445,2]
[383625026,1757045457439,-553.22,0.00025445,2]
[383625027,1757045457448,-414.52021665,0.00025445,2]
[383625028,1757045457458,-400.0,0.00025445,2]
[383625029,1757045457467,-400.0,0.00025445,2]
[383625030,1757045457477,-1046.62047216,0.00025445,2]
[383625031,1757045457487,-400.0,0.00025445,2]
[383625032,1757045457496,-400.0,0.00025445,2]
[383625033,1757045457506,-400.0,0.00025445,2]
[383625034,1757045457516,-400.0,0.00025445,2]
[383625035,1757045457526,-496.61907153,0.00025445,2]
[383625036,1757045457535,-400.0,0.00025445,2]
[383625037,1757045457545,-400.0,0.00025445,2]
[383625038,1757045457559,-400.0,0.00025445,2]
[383625039,1757045457569,-410.98349427,0.00025445,2]
[383625040,1757045457578,-411.28068054,0.00025445,2]
[383625041,1757045457588,-400.0,0.00025445,2]
[383625042,1757045457599,-400.0,0.00025445,2]
[383625043,1757045457609,-659.02,0.00025445,2]
[383625044,1757045457620,-416.38947842,0.00025445,2]
[383625045,1757045457630,-693.59,0.00025445,2]
[383625046,1757045457641,-400.0,0.00025445,2]
[383625047,1757045457651,-400.0,0.00025445,2]
[383625048,1757045457661,-400.0,0.00025445,2]
[383625049,1757045457670,-464.57749342,0.00025445,2]
[383625050,1757045457680,-1013.01,0.00025445,2]
[383625051,1757045457691,-400.0,0.00025445,2]
[383625052,1757045457701,-400.0,0.00025445,2]
[383625053,1757045457711,-400.0,0.00025445,2]
[383625054,1757045457720,-400.0,0.00025445,2]
[383625055,1757045457730,-400.0,0.00025445,2]
[383625056,1757045457741,-400.0,0.00025445,2]
[383625057,1757045457751,-400.0,0.00025445,2]
[383625058,1757045457760,-400.0,0.00025445,2]
[383625059,1757045457769,-25239.4407081,0.00025446,3]
[383625060,1757045457778,-400.0,0.00025446,2]
[383625061,1757045457788,-400.0,0.00025456,2]
[383625062,1757045457797,-400.0,0.00025456,2]
[383625063,1757045457807,-400.0,0.00025456,2]
[383625064,1757045457816,-400.0,0.00025456,2]
[383625065,1757045457825,-400.0,0.00025456,2]
[383625066,1757045457835,-400.0,0.00025456,2]
[383625067,1757045457846,-400.0,0.00025478,2]
[383625068,1757045457856,-400.0,0.00025478,2]
[383625069,1757045457865,-400.0,0.00025478,2]
[383625070,1757045457875,-2614.78,0.00025478,2]
[383625071,1757045457885,-400.0,0.00025478,2]
[383625072,1757045457895,-400.0,0.00025478,2]
[383625073,1757045457905,-400.0,0.00025478,2]
[383625074,1757045457915,-400.0,0.00025479,2]
[383625075,1757045457925,-206.24335184,0.00025479,2]
[383625076,1757045457934,-400.0,0.00025479,2]
[383625077,1757045457944,-521.06,0.00025479,2]
[383625078,1757045457954,-400.0,0.00025479,2]
[383625079,1757045457965,-400.0,0.00025479,2]
[383625080,1757045457976,-447.51794486,0.00025479,2]
[383625081,1757045457986,-400.0,0.00025479,2]
[383625082,1757045457997,-400.0,0.00025479,2]
[383625083,1757045458008,-400.0,0.00025479,2]
[383625084,1757045458019,-400.0,0.00025479,2]
[383625085,1757045458032,-283.60115866,0.00025479,2]
[383625086,1757045458042,-400.0,0.00025479,2]
[383625087,1757045458053,-400.0,0.00025479,2]
[383625088,1757045458063,-517.75769432,0.00025479,2]
[383625089,1757045458074,-484.97977233,0.00025479,2]
[383625090,1757045458084,-400.0,0.00025479,2]
[383625091,1757045458093,-253.52069094,0.00025479,2]
[383625092,1757045458103,-214.75491566,0.00025479,2]
[383625093,1757045458112,-434.7200852,0.00025479,2]
[383625094,1757045458122,-171.199849,0.00025479,2]
[383625095,1757045458131,-400.0,0.00025479,2]
[383625096,1757045458142,-400.0,0.00025479,2]
[383625097,1757045458151,-400.0,0.00025479,2]
[383625098,1757045458162,-400.0,0.00025479,2]
[383625099,1757045458171,-405.26802903,0.00025479,2]
[383625100,1757045458181,-400.0,0.00025479,2]
[383625101,1757045458190,-400.0,0.00025479,2]
[383625102,1757045458200,-449.88619955,0.00025479,2]
[383625103,1757045458209,-400.0,0.00025479,2]
[383625104,1757045458219,-400.0,0.00025479,2]
[383625105,1757045458228,-400.0,0.00025479,2]
[383625106,1757045458237,-400.0,0.00025479,2]
[383625107,1757045458247,-354.88718412,0.00025479,2]
[383625108,1757045458256,-400.0,0.00025479,2]
[383625109,1757045458266,-400.0,0.00025479,2]
[383625110,1757045458279,-282.98045659,0.00025479,2]
[383625111,1757045458288,-400.0,0.00025479,2]
[383625112,1757045458298,-400.0,0.00025479,2]
[383625113,1757045458308,-400.0,0.00025479,2]
[383625114,1757045458317,-400.0,0.00025479,2]
[383625115,1757045458327,-400.0,0.00025479,2]
[383625116,1757045458336,-400.0,0.00025479,2]
[383625117,1757045458345,-407.61889479,0.00025479,2]
[383625118,1757045458354,-400.0,0.00025479,2]
[383625119,1757045458363,-400.0,0.00025479,2]
[383625120,1757045458372,-400.0,0.00025479,2]
[383625121,1757045458382,-400.0,0.00025479,2]
[383625122,1757045458391,-400.0,0.00025479,2]
[383625123,1757045458401,-400.0,0.00025479,2]
[383625124,1757045458411,-410.93368767,0.00025479,2]
[383625125,1757045458420,-203.47649974,0.00025479,2]
[383625126,1757045458429,-400.0,0.00025479,2]
[383625127,1757045458439,-410.04449186,0.00025479,2]
[383625128,1757045458448,-400.0,0.00025479,2]
[383625129,1757045458459,-417.43962993,0.00025479,2]
[383625130,1757045458470,-400.0,0.00025479,2]
[383625131,1757045458480,-400.0,0.00025479,2]
[383625132,1757045458490,-400.0,0.00025479,2]
[383625133,1757045458501,-400.0,0.00025479,2]
[383625134,1757045458510,-400.0,0.00025479,2]
[383625135,1757045458522,-400.0,0.00025479,2]
[383625136,1757045458531,-439.13414884,0.00025479,2]
[383625137,1757045458541,-400.0,0.00025479,2]
[383625138,1757045458555,-400.0,0.00025479,2]
[383625139,1757045458565,-411.01463571,0.00025479,2]
[383625140,1757045458576,-400.0,0.00025479,2]
[383625141,1757045458585,-400.0,0.00025479,2]
[383625142,1757045458594,-400.0,0.00025479,2]
[383625143,1757045458605,-324.72464594,0.00025479,2]
[383625144,1757045458615,-400.0,0.00025479,2]
[383625145,1757045458624,-400.0,0.00025479,2]
[383625146,1757045458634,-400.0,0.00025479,2]
[383625147,1757045458643,-404.27766088,0.00025479,2]
[383625148,1757045458653,-351.27471985,0.00025479,2]
[383625149,1757045458662,-400.0,0.00025479,2]
[383625150,1757045458671,-400.0,0.00025479,2]
[383625151,1757045458680,-400.0,0.00025479,2]
[383625152,1757045458689,-400.0,0.00025479,2]
[383625153,1757045458699,-528.22016429,0.00025479,2]
[383625154,1757045458708,-400.0,0.00025479,2]
[383625155,1757045458717,-400.0,0.00025479,2]
[383625156,1757045458727,-400.0,0.00025479,2]
[383625157,1757045458736,-400.0,0.00025479,2]
[383625158,1757045458745,-400.0,0.00025479,2]
[383625159,1757045458755,-512.699435,0.00025479,2]
[383625160,1757045458764,-400.0,0.00025479,2]
[383625161,1757045458774,-197.04256363,0.00025479,2]
[383625162,1757045458784,-400.0,0.00025479,2]
[383625163,1757045458793,-400.0,0.00025479,2]
[383625164,1757045458802,-400.0,0.00025479,2]
[383625165,1757045458813,-400.0,0.00025479,2]
[383625166,1757045458825,-182.75985592,0.00025479,2]
[383625167,1757045458836,-400.0,0.00025479,2]
[383625168,1757045458845,-400.0,0.00025479,2]
[383625169,1757045458855,-577.81,0.00025479,2]
[383625170,1757045458867,-400.0,0.00025479,2]
[383625171,1757045458876,-400.0,0.00025479,2]
[383625172,1757045458886,-1340.23,0.00025479,2]
[383625173,1757045458896,-402.13598918,0.00025479,2]
[383625174,1757045458905,-400.0,0.00025479,2]
[383625175,1757045458915,-400.0,0.00025479,2]
[383625176,1757045458925,-400.0,0.00025479,2]
[383625177,1757045458935,-828.84,0.00025479,2]
[383625178,1757045458944,-400.0,0.00025479,2]
[383625179,1757045458954,-400.0,0.00025479,2]
[383625180,1757045458963,-1218.03,0.00025479,2]
[383625181,1757045458973,-701.33,0.00025479,2]
[383625182,1757045458982,-400.0,0.00025479,2]
[383625183,1757045458991,-440.35982123,0.00025479,2]
[383625184,1757045459001,-231.95834496,0.00025479,2]
[383625185,1757045459010,-400.0,0.00025479,2]
[383625186,1757045459020,-400.0,0.00025479,2]
[383625187,1757045459030,-400.0,0.00025479,2]
[383625188,1757045459040,-400.0,0.00025479,2]
[383625189,1757045459051,-400.0,0.00025479,2]
[383625190,1757045459060,-400.0,0.00025479,2]
[383625191,1757045459070,-400.0,0.00025479,2]
[383625192,1757045459080,-400.0,0.00025479,2]
[383625193,1757045459092,-400.0,0.00025479,2]
[383625194,1757045459100,-400.0,0.00025479,2]
[383625195,1757045459109,-512.78767003,0.00025479,2]
[383625196,1757045459118,-510.57079445,0.00025479,2]
[383625197,1757045459129,-400.0,0.00025479,2]
[383625198,1757045459140,-400.0,0.00025479,2]
[383625199,1757045459151,-400.0,0.00025479,2]
[383625200,1757045459159,-469.972192,0.00025479,2]
[383625201,1757045459170,-400.0,0.00025479,2]
[383625202,1757045459181,-400.0,0.00025479,2]
[383625203,1757045459192,-400.0,0.00025479,2]
[383625204,1757045459202,-424.56,0.00025479,2]
[383625205,1757045459214,-500.83087531,0.00025479,2]
[383625206,1757045459352,-400.0,0.00025479,2]
[383625207,1757045459363,-400.0,0.00025479,2]
[383625208,1757045459372,-400.0,0.00025479,2]
[383625209,1757045459382,-400.0,0.00025479,2]
[383625210,1757045459394,-400.0,0.00025479,2]
[383625211,1757045459403,-400.0,0.00025479,2]
[383625212,1757045459413,-400.0,0.00025479,2]
[383625213,1757045459422,-400.0,0.00025479,2]
[383625214,1757045459432,-400.0,0.00025479,2]
[383625215,1757045459442,-575.41,0.00025479,2]
[383625216,1757045459452,-400.0,0.00025479,2]
[383625217,1757045459463,-400.0,0.00025479,2]
[383625218,1757045459474,-3097.05,0.00025479,2]
[383625219,1757045459485,-400.0,0.00025479,2]
[383625220,1757045459495,-400.0,0.00025479,2]
[383625221,1757045459504,-400.0,0.00025479,2]
[383625222,1757045459514,-400.0,0.00025479,2]
[383625223,1757045459524,-400.0,0.00025479,2]
[383625224,1757045459535,-400.0,0.00025479,2]
[383625225,1757045459545,-400.0,0.00025479,2]
[383625226,1757045459558,-1425.0,0.00025489,2]
[383625227,1757045459568,-150.0,0.00025498,2]
[383625228,1757045459577,-973.24625,0.000255,2]
[383625229,1757045459587,-163.95,0.00025505,2]
[383625230,1757045459599,-150.0,0.00025515,2]
[383625231,1757045459608,-1425.0,0.00025515,2]
[383625232,1757045459618,-1425.0,0.00025517,2]
[383625233,1757045459630,-2297.50094211,0.0002552,2]
[383625234,1757045459640,-454.04783781,0.00025521,2]
[383625235,1757045459649,-504.06718551,0.00025521,2]
[383625236,1757045459659,-762.00868951,0.00025521,2]
[383625237,1757045459669,-1000.0,0.00025521,2]
[383625238,1757045459678,-1000.0,0.00025521,2]
[383625239,1757045459688,-2097.6146,0.00025525,2]
[383625240,1757045459698,-1425.0,0.00025532,2]
[383625241,1757045459707,-1425.0,0.00025534,2]
[383625242,1757045459718,-151.21128972,0.00025541,2]
[383625243,1757045459727,-500.0,0.00025544,14]
[383625244,1757045459737,-150.0,0.00025544,14]
[383625245,1757045459746,-150.0,0.00025544,14]
[383625246,1757045459755,-500.0,0.00025544,14]
[383625247,1757045459765,-1000.0,0.0002557,2]
[383625248,1757045459775,-519.87310342,0.00025583,2]
[383625249,1757045459784,-1425.0,0.00025595,2]
[383625250,1757045459796,-150.0,0.00025599,2]
[383625251,1757045459807,-810.27138044,0.00025601,2]
[383625252,1757045459817,-1032.6988182,0.00025603,2]
[383625253,1757045459827,-1255.12625597,0.00025605,2]
[383625254,1757045459836,-1477.55369374,0.00025606,2]
[383625255,1757045459846,-1699.9811315,0.00025608,2]
[383625256,1757045459856,-1922.40856927,0.0002561,2]
[383625257,1757045459866,-2144.83600704,0.00025611,2]
[383625258,1757045459877,-2367.2634448,0.00025613,2]
[383625259,1757045459886,-500.0,0.00025614,2]
[383625260,1757045459896,-325.6167365,0.00025614,2]
[383625261,1757045459906,-516.32504354,0.00025614,2]
[383625262,1757045459916,-500.0,0.00025614,2]
[383625263,1757045459926,-206.17391796,0.00025614,2]
[383625264,1757045459935,-500.0,0.00025614,2]
[383625265,1757045459945,-500.0,0.00025614,2]
[383625266,1757045459955,-500.0,0.00025614,2]
[383625267,1757045459964,-543.62847622,0.00025614,2]
[383625268,1757045459974,-500.0,0.00025614,2]
[383625269,1757045459984,-500.0,0.00025614,2]
[383625270,1757045459994,-2589.69088257,0.00025615,2]
[383625271,1757045460004,-342.76,0.00025616,2]
[383625272,1757045460014,-400.0,0.0002562,2]
[383625273,1757045460023,-400.0,0.0002562,2]
[383625274,1757045460033,-400.0,0.0002562,2]
[383625275,1757045460043,-400.0,0.0002562,2]
[383625276,1757045460053,-400.0,0.0002562,2]
[383625277,1757045460063,-400.0,0.0002562,2]
[383625278,1757045460073,-400.0,0.0002562,2]
[383625279,1757045460083,-400.0,0.0002562,2]
[383625280,1757045460092,-400.0,0.0002562,2]
[383625281,1757045460101,-400.0,0.0002562,2]
[383625282,1757045460111,-400.0,0.0002562,2]
[383625283,1757045460121,-400.0,0.0002562,2]
[383625284,1757045460131,-400.0,0.0002562,2]
[383625285,1757045460141,-400.0,0.0002562,2]
[383625286,1757045460151,-295.00796912,0.0002562,2]
[383625287,1757045460161,-486.92653722,0.0002562,2]
[383625288,1757045460170,-400.0,0.0002562,2]
[383625289,1757045460180,-400.0,0.0002562,2]
[383625290,1757045460190,-400.0,0.0002562,2]
[383625291,1757045460199,-400.0,0.0002562,2]
[383625292,1757045460209,-400.0,0.0002562,2]
[383625293,1757045460218,-400.0,0.0002562,2]
[383625294,1757045460228,-400.0,0.0002562,2]
[383625295,1757045460238,-400.0,0.0002562,2]
[383625296,1757045460247,-400.0,0.0002562,2]
[383625297,1757045460256,-400.0,0.0002562,2]
[383625298,1757045460266,-400.0,0.0002562,2]
[383625299,1757045460276,-400.0,0.0002562,2]
[383625300,1757045460285,-400.0,0.0002562,2]
[383625301,1757045460294,-254.11086929,0.0002562,2]
[383625302,1757045460304,-400.0,0.0002562,2]
[383625303,1757045460313,-197.64,0.0002562,2]
[383625304,1757045460322,-400.0,0.0002562,2]
[383625305,1757045460332,-290.12423322,0.0002562,2]
[383625306,1757045460342,-276.12,0.0002562,2]
[383625307,1757045460351,-408.0974691,0.0002562,2]
[383625308,1757045460361,-400.0,0.0002562,2]
[383625309,1757045460371,-400.0,0.0002562,2]
[383625310,1757045460380,-531.34394507,0.0002562,2]
[383625311,1757045460389,-400.0,0.0002562,2]
[383625312,1757045460400,-400.0,0.0002562,2]
[383625313,1757045460410,-400.0,0.0002562,2]
[383625314,1757045460419,-400.0,0.0002562,2]
[383625315,1757045460429,-420.59990316,0.0002562,2]
[383625316,1757045460438,-400.0,0.0002562,2]
[383625317,1757045460448,-400.0,0.0002562,2]
[383625318,1757045460458,-400.0,0.0002562,2]
[383625319,1757045460468,-400.0,0.0002562,2]
[383625320,1757045460477,-400.0,0.0002562,2]
[383625321,1757045460487,-400.0,0.0002562,2]
[383625322,1757045460496,-443.96712052,0.0002562,2]
[383625323,1757045460505,-400.0,0.0002562,2]
[383625324,1757045460515,-400.0,0.0002562,2]
[383625325,1757045460524,-400.0,0.0002562,2]
[383625326,1757045460533,-400.0,0.0002562,2]
[383625327,1757045460543,-400.0,0.0002562,2]
[383625328,1757045460555,-521.91538669,0.0002562,2]
[383625329,1757045460564,-400.0,0.0002562,2]
[383625330,1757045460575,-400.0,0.0002562,2]
[383625331,1757045460592,-400.0,0.0002562,2]
[383625332,1757045460610,-222.21766403,0.0002562,2]
[383625333,1757045460623,-400.0,0.0002562,2]
[383625334,1757045460639,-400.0,0.0002562,2]
[383625335,1757045460654,-400.0,0.0002562,2]
[383625336,1757045460670,-400.0,0.0002562,2]
[383625337,1757045460685,-539.96314555,0.0002562,2]
[383625338,1757045460697,-400.0,0.0002562,2]
[383625339,1757045460712,-408.47081292,0.0002562,2]
[383625340,1757045460728,-400.0,0.0002562,2]
[383625341,1757045460744,-408.60988341,0.0002562,2]
[383625342,1757045460759,-400.0,0.0002562,2]
[383625343,1757045460775,-160.15817408,0.0002562,2]
[383625344,1757045460791,-400.0,0.0002562,2]
[383625345,1757045460807,-260.1228869,0.0002562,2]
[383625346,1757045460821,-400.0,0.0002562,2]
[383625347,1757045460836,-216.56024469,0.0002562,2]
[383625348,1757045460850,-400.0,0.0002562,2]
[383625349,1757045460865,-400.0,0.0002562,2]
[383625350,1757045460880,-405.53264751,0.0002562,2]
[383625351,1757045460893,-400.0,0.0002562,2]
[383625352,1757045460905,-419.8050304,0.0002562,2]
[383625353,1757045460919,-400.0,0.0002562,2]
[383625354,1757045460936,-400.0,0.0002562,2]
[383625355,1757045460948,-400.0,0.0002562,2]
[383625356,1757045460961,-400.0,0.0002562,2]
[383625357,1757045460976,-475.67799518,0.0002562,2]
[383625358,1757045460989,-400.0,0.0002562,2]
[383625359,1757045461002,-400.0,0.0002562,2]
[383625360,1757045461014,-362.57851069,0.0002562,2]
[383625361,1757045461029,-400.0,0.0002562,2]
[383625362,1757045461041,-400.0,0.0002562,2]